fUSD/lending_fUSD_20260605
["ID","MTS","AMOUNT","RATE_DAILY","PERIOD"]
[424132704,1780607448000,-1069.23467737,0.00028059,2]
[424132700,1780607448000,-307.05311869,0.00028059,2]
[424132702,1780607448000,-251.11897888,0.00028059,2]
[424132589,1780607448000,-350.0,0.00027235,9]
[424132681,1780607448000,-174.64,0.00027749,2]
[424132650,1780607448000,-242.15909246,0.00027511,2]
[424132691,1780607448000,-215.73365239,0.00028,10]
[424132646,1780607448000,-500.0,0.000275,7]
[424132630,1780607448000,-242.02,0.00027397,2]
[424132573,1780607448000,-994.29561143,0.00026963,2]
[424132579,1780607448000,-1600.263084,0.00027,60]
[424132569,1780607448000,-374.31742255,0.00026963,2]
[424132575,1780607448000,-500.0,0.00026963,2]
[424132577,1780607448000,-382.87,0.00027,14]
[424132595,1780607448000,-163.21051151,0.00027397,7]
[424132600,1780607448000,-500.0,0.00027397,2]
[424132604,1780607448000,-352.0,0.00027397,2]
[424132602,1780607448000,-500.0,0.00027397,2]
[424132598,1780607448000,-195.8526138,0.00027397,7]
[424132606,1780607448000,-150.0,0.00027397,2]
[424132610,1780607448000,-150.0,0.00027397,2]
[424132612,1780607448000,-259.11494659,0.00027397,2]
[424132587,1780607448000,-500.0,0.00027233,2]
[424132616,1780607448000,-321.22305785,0.00027397,2]
[424132608,1780607448000,-150.0,0.00027397,2]
[424132628,1780607448000,-300.0,0.00027397,2]
[424132644,1780607448000,-6188.46715844,0.00027434,2]
[424132642,1780607448000,-1358.09,0.000274,7]
[424132636,1780607448000,-205.85407487,0.00027398,7]
[424132638,1780607448000,-1055.68,0.000274,7]
[424132640,1780607448000,-959.27,0.000274,14]
[424132622,1780607448000,-3083.68,0.00027397,2]
[424132614,1780607448000,-150.0,0.00027397,2]
[424132626,1780607448000,-528.6,0.00027397,2]
[424132618,1780607448000,-1500.0,0.00027397,2]
[424132632,1780607448000,-1022.03,0.00027397,2]
[424132620,1780607448000,-6009.6,0.00027397,2]
[424132623,1780607448000,-1000.0,0.00027397,20]
[424132790,1780607449000,-1092.68360314,0.00028771,5]
[424132779,1780607449000,-218.19,0.00028725,2]
[424132780,1780607449000,-218.31,0.00028756,7]
[424132772,1780607449000,-218.31,0.00028693,30]
[424132784,1780607449000,-1125.00750342,0.00028771,5]
[424132786,1780607449000,-1023.93993207,0.00028771,5]
[424132787,1780607449000,-1103.73582607,0.00028771,5]
[424132789,1780607449000,-1060.77206928,0.00028771,5]
[424132793,1780607449000,-1026.35748614,0.00028771,5]
[424132792,1780607449000,-1078.56863199,0.00028771,5]
[424132771,1780607449000,-218.19,0.00028661,7]
[424132782,1780607449000,-218.19,0.00028756,7]
[424132798,1780607449000,-1048.31374074,0.00028771,5]
[424132796,1780607449000,-1018.72886513,0.00028771,5]
[424132791,1780607449000,-1077.68134151,0.00028771,5]
[424132795,1780607449000,-1026.43857167,0.00028771,5]
[424132794,1780607449000,-1011.07881138,0.00028771,5]
[424132797,1780607449000,-1108.27633756,0.00028771,5]
[424132800,1780607449000,-1039.30548351,0.00028771,5]
[424132807,1780607449000,-1007.11288055,0.00028771,5]
[424132808,1780607449000,-1036.6677488,0.00028771,5]
[424132809,1780607449000,-1741.17044028,0.00028771,5]
[424132769,1780607449000,-218.31,0.00028661,7]
[424132810,1780607449000,-218.31,0.00028788,30]
[424132788,1780607449000,-1120.46560796,0.00028771,5]
[424132777,1780607449000,-218.31,0.00028725,2]
[424132738,1780607449000,-437.4,0.00028344,2]
[424132767,1780607449000,-985.97,0.0002863,30]
[424132801,1780607449000,-1086.18147214,0.00028771,5]
[424132718,1780607449000,-150.0,0.00028062,2]
[424132720,1780607449000,-150.0,0.00028062,2]
[424132722,1780607449000,-150.0,0.00028062,2]
[424132724,1780607449000,-150.0,0.00028062,2]
[424132726,1780607449000,-3552.0,0.00028062,2]
[424132728,1780607449000,-1357.0,0.00028062,2]
[424132732,1780607449000,-1055.68,0.000282,7]
[424132734,1780607449000,-959.27,0.000282,14]
[424132730,1780607449000,-1358.09,0.000281,7]
[424132735,1780607449000,-3468.4,0.00028267,2]
[424132737,1780607449000,-504.0,0.00028286,3]
[424132741,1780607449000,-450.0,0.00028344,2]
[424132743,1780607449000,-466.05324864,0.00028442,16]
[424132747,1780607449000,-7094.0,0.00028539,7]
[424132750,1780607449000,-790.72785747,0.00028607,2]
[424132756,1780607449000,-547.36,0.0002863,30]
[424132745,1780607449000,-168.17,0.00028493,2]
[424132748,1780607449000,-260.4103811,0.00028607,2]
[424132754,1780607449000,-218.31,0.0002863,2]
[424132752,1780607449000,-899.14,0.0002863,30]
[424132759,1780607449000,-897.64,0.0002863,30]
[424132761,1780607449000,-546.44,0.0002863,30]
[424132763,1780607449000,-218.19,0.0002863,2]
[424132765,1780607449000,-984.83,0.0002863,30]
[424132775,1780607449000,-218.19,0.00028693,30]
[424132799,1780607449000,-1015.0024213,0.00028771,5]
[424132805,1780607449000,-1064.18487116,0.00028771,5]
[424132858,1780607449000,-218.19,0.00029042,7]
[424132838,1780607449000,-218.31,0.00028979,30]
[424132839,1780607449000,-218.19,0.00028979,30]
[424132840,1780607449000,-10000.0,0.00029,2]
[424132841,1780607449000,-200.0,0.00029,2]
[424132843,1780607449000,-1055.68,0.00029,7]
[424132837,1780607449000,-186.05059448,0.00028971,2]
[424132846,1780607449000,-215.73365239,0.00029,7]
[424132844,1780607449000,-959.27,0.00029,14]
[424132845,1780607449000,-985.0,0.00029,7]
[424132848,1780607449000,-1879.91081366,0.00029,2]
[424132847,1780607449000,-30805.46185503,0.00029,7]
[424132836,1780607449000,-985.97,0.00028964,2]
[424132856,1780607449000,-218.19,0.0002901,2]
[424132855,1780607449000,-218.31,0.0002901,2]
[424132853,1780607449000,-4984.47681238,0.00029,2]
[424132857,1780607449000,-218.31,0.00029042,7]
[424132852,1780607449000,-4984.47681238,0.00029,2]
[424132851,1780607449000,-1069.11,0.00029,30]
[424132850,1780607449000,-1879.91081365,0.00029,2]
[424132854,1780607449000,-4984.47681238,0.00029,2]
[424132859,1780607449000,-316.54165593,0.00029055,2]
[424132860,1780607449000,-303.13932775,0.00029055,2]
[424132861,1780607449000,-336.88051036,0.00029055,2]
[424132802,1780607449000,-1064.08350714,0.00028771,5]
[424132849,1780607449000,-1879.91081365,0.00029,2]
[424132831,1780607449000,-899.14,0.00028964,2]
[424132842,1780607449000,-217.32,0.00029,2]
[424132827,1780607449000,-218.31,0.00028915,2]
[424132803,1780607449000,-1109.49824587,0.00028771,5]
[424132804,1780607449000,-1045.5957859,0.00028771,5]
[424132806,1780607449000,-1130.58966321,0.00028771,5]
[424132811,1780607449000,-218.19,0.00028788,30]
[424132814,1780607449000,-897.64,0.00028797,7]
[424132816,1780607449000,-984.83,0.00028797,7]
[424132813,1780607449000,-547.36,0.00028797,7]
[424132815,1780607449000,-546.44,0.00028797,7]
[424132830,1780607449000,-218.19,0.00028947,7]
[424132818,1780607449000,-1358.09,0.000288,7]
[424132820,1780607449000,-218.31,0.0002882,2]
[424132819,1780607449000,-200.0,0.00028818,2]
[424132812,1780607449000,-899.14,0.00028797,7]
[424132817,1780607449000,-985.97,0.00028797,7]
[424132821,1780607449000,-218.19,0.0002882,2]
[424132824,1780607449000,-504.0,0.00028861,3]
[424132835,1780607449000,-984.83,0.00028964,2]
[424132833,1780607449000,-897.64,0.00028964,2]
[424132834,1780607449000,-546.44,0.00028964,2]
[424132823,1780607449000,-218.19,0.00028852,7]
[424132826,1780607449000,-218.19,0.00028883,30]
[424132825,1780607449000,-218.31,0.00028883,30]
[424132828,1780607449000,-218.19,0.00028915,2]
[424132829,1780607449000,-218.31,0.00028947,7]
[424132822,1780607449000,-218.31,0.00028852,7]
[424132832,1780607449000,-547.36,0.00028964,2]
[424132891,1780607450000,-1500.0,0.00029156,2]
[424132897,1780607450000,-1500.0,0.00029156,2]
[424132901,1780607450000,-285.0,0.00029156,2]
[424132900,1780607450000,-1017.0,0.00029156,2]
[424132902,1780607450000,-150.0,0.00029156,2]
[424132896,1780607450000,-1500.0,0.00029156,2]
[424132889,1780607450000,-218.19,0.00029137,7]
[424132905,1780607450000,-218.31,0.00029169,30]
[424132906,1780607450000,-218.19,0.00029169,30]
[424132895,1780607450000,-1500.0,0.00029156,2]
[424132899,1780607450000,-1500.0,0.00029156,2]
[424132904,1780607450000,-366.0,0.00029157,2]
[424132898,1780607450000,-1500.0,0.00029156,2]
[424132929,1780607450000,-531.04,0.000293,7]
[424132909,1780607450000,-218.31,0.00029201,2]
[424132907,1780607450000,-565.94,0.00029173,30]
[424132918,1780607450000,-1450.0,0.00029219,2]
[424132913,1780607450000,-1450.0,0.00029219,2]
[424132910,1780607450000,-218.19,0.00029201,2]
[424132912,1780607450000,-1450.0,0.00029219,2]
[424132917,1780607450000,-1450.0,0.00029219,2]
[424132914,1780607450000,-1450.0,0.00029219,2]
[424132908,1780607450000,-745.38,0.00029173,7]
[424132915,1780607450000,-1450.0,0.00029219,2]
[424132911,1780607450000,-1450.0,0.00029219,2]
[424132916,1780607450000,-1450.0,0.00029219,2]
[424132890,1780607450000,-270.0455652,0.00029155,2]
[424132903,1780607450000,-239.0,0.00029156,2]
[424132893,1780607450000,-1500.0,0.00029156,2]
[424132862,1780607450000,-319.68872456,0.00029056,2]
[424132892,1780607450000,-1500.0,0.00029156,2]
[424132865,1780607450000,-304.13812265,0.00029056,2]
[424132864,1780607450000,-371.76460453,0.00029056,2]
[424132867,1780607450000,-372.28898546,0.00029056,2]
[424132863,1780607450000,-326.24081998,0.00029056,2]
[424132866,1780607450000,-185.11451151,0.00029056,2]
[424132868,1780607450000,-341.14682599,0.00029056,2]
[424132869,1780607450000,-349.28,0.00029056,2]
[424132871,1780607450000,-205.75953797,0.00029056,2]
[424132881,1780607450000,-300.86756511,0.0002913,7]
[424132880,1780607450000,-218.19,0.00029105,2]
[424132879,1780607450000,-218.31,0.00029105,2]
[424132873,1780607450000,-174.31276648,0.0002906,2]
[424132888,1780607450000,-218.31,0.00029137,7]
[424132872,1780607450000,-171.03795223,0.00029056,2]
[424132874,1780607450000,-243.48055556,0.0002906,2]
[424132875,1780607450000,-231.08677366,0.0002906,2]
[424132878,1780607450000,-218.19,0.00029074,30]
[424132877,1780607450000,-218.31,0.00029074,30]
[424132876,1780607450000,-314.08359291,0.0002906,2]
[424132882,1780607450000,-899.14,0.00029132,30]
[424132887,1780607450000,-985.97,0.00029132,30]
[424132883,1780607450000,-547.36,0.00029132,30]
[424132885,1780607450000,-546.44,0.00029132,30]
[424132886,1780607450000,-984.83,0.00029132,30]
[424132894,1780607450000,-1500.0,0.00029156,2]
[424132884,1780607450000,-897.64,0.00029132,30]
[424132870,1780607450000,-183.67012409,0.00029056,2]
[424132928,1780607450000,-985.97,0.00029299,7]
[424132976,1780607450000,-456.20718397,0.00029928,2]
[424132930,1780607450000,-150.0,0.00029337,2]
[424132951,1780607450000,-200.0,0.00029769,2]
[424132952,1780607450000,-614.0,0.0002989,2]
[424132957,1780607450000,-183.69354974,0.00029926,2]
[424132967,1780607450000,-244.7367933,0.00029928,2]
[424132960,1780607450000,-212.80808437,0.00029926,2]
[424132965,1780607450000,-218.15101478,0.00029928,2]
[424132958,1780607450000,-474.8124839,0.00029926,2]
[424132966,1780607450000,-213.88594878,0.00029928,2]
[424132956,1780607450000,-203.59110324,0.00029926,2]
[424132962,1780607450000,-214.11853685,0.00029926,2]
[424132959,1780607450000,-200.74373317,0.00029926,2]
[424132964,1780607450000,-505.32076554,0.00029926,2]
[424132961,1780607450000,-454.70899163,0.00029926,2]
[424132969,1780607450000,-216.37853026,0.00029928,2]
[424132979,1780607450000,-511.72023898,0.00029928,2]
[424132972,1780607450000,-275.19833817,0.00029928,2]
[424132970,1780607450000,-208.39110537,0.00029928,2]
[424132968,1780607450000,-197.42994637,0.00029928,2]
[424132971,1780607450000,-198.17391839,0.00029928,2]
[424132973,1780607450000,-279.57099454,0.00029928,2]
[424132975,1780607450000,-489.36122997,0.00029928,2]
[424132974,1780607450000,-479.53308683,0.00029928,2]
[424132977,1780607450000,-370.22902302,0.00029928,2]
[424132978,1780607450000,-558.43347819,0.00029928,2]
[424132980,1780607450000,-523.92,0.00029928,2]
[424132926,1780607450000,-546.44,0.00029299,7]
[424132981,1780607450000,-226.1410293,0.00029928,2]
[424132954,1780607450000,-253.0165642,0.00029926,2]
[424132953,1780607450000,-1055.68,0.000299,7]
[424132963,1780607450000,-168.21826248,0.00029926,2]
[424132949,1780607450000,-150.0,0.00029769,2]
[424132921,1780607450000,-218.33,0.00029232,7]
[424132950,1780607450000,-150.0,0.00029769,2]
[424132920,1780607450000,-1301.0,0.00029219,2]
[424132919,1780607450000,-1450.0,0.00029219,2]
[424132922,1780607450000,-218.28,0.00029232,7]
[424132925,1780607450000,-897.64,0.00029299,7]
[424132924,1780607450000,-547.36,0.00029299,7]
[424132923,1780607450000,-899.14,0.00029299,7]
[424132932,1780607450000,-150.0,0.00029337,2]
[424132933,1780607450000,-7149.5876628,0.00029337,2]
[424132931,1780607450000,-11736.59786021,0.00029337,2]
[424132934,1780607450000,-200.0,0.0002939,2]
[424132936,1780607450000,-504.0,0.00029435,4]
[424132937,1780607450000,-186.05059448,0.00029492,2]
[424132927,1780607450000,-984.83,0.00029299,7]
[424132938,1780607450000,-1358.09,0.000295,7]
[424132935,1780607450000,-150.0,0.00029412,20]
[424132946,1780607450000,-200.0,0.00029769,2]
[424132947,1780607450000,-150.0,0.00029769,2]
[424132944,1780607450000,-200.0,0.00029684,2]
[424132948,1780607450000,-200.0,0.00029769,2]
[424132945,1780607450000,-266.39576586,0.00029703,2]
[424132955,1780607450000,-199.98862997,0.00029926,2]
[424132940,1780607450000,-150.0,0.00029534,2]
[424132941,1780607450000,-742.16748949,0.00029553,2]
[424132942,1780607450000,-150.0,0.00029583,2]
[424132943,1780607450000,-7456.0546823,0.00029594,2]
[424132939,1780607450000,-24793.0,0.00029523,2]
[424133021,1780607451000,-389.20230715,0.00030137,2]
[424133022,1780607451000,-583.80346073,0.00030137,2]
[424133023,1780607451000,-369.78045339,0.00030137,120]
[424133014,1780607451000,-200.0,0.00030067,2]
[424133024,1780607451000,-1000.0,0.00030137,120]
[424133018,1780607451000,-985.0,0.000301,7]
[424133019,1780607451000,-242.02,0.00030137,2]
[424133017,1780607451000,-959.27,0.000301,14]
[424133016,1780607451000,-1000.0,0.0003007,2]
[424133025,1780607451000,-371.24,0.00030137,2]
[424133015,1780607451000,-500.0,0.0003007,2]
[424133020,1780607451000,-194.60115358,0.00030137,2]
[424133026,1780607451000,-500.0,0.00030137,3]
[424133039,1780607451000,-1500.0,0.00030137,15]
[424133028,1780607451000,-500.0,0.00030137,3]
[424133030,1780607451000,-150.0,0.00030137,30]
[424133034,1780607451000,-500.0,0.00030137,3]
[424133029,1780607451000,-500.0,0.00030137,3]
[424133038,1780607451000,-1500.0,0.00030137,15]
[424133035,1780607451000,-500.0,0.00030137,3]
[424133033,1780607451000,-500.0,0.00030137,3]
[424133037,1780607451000,-165.27,0.00030137,2]
[424133036,1780607451000,-165.28,0.00030137,2]
[424133031,1780607451000,-500.0,0.00030137,3]
[424133032,1780607451000,-500.0,0.00030137,3]
[424133004,1780607451000,-215.73365239,0.0003,30]
[424133027,1780607451000,-500.0,0.00030137,3]
[424133012,1780607451000,-200.0,0.00030067,2]
[424132982,1780607451000,-367.34024817,0.00029928,2]
[424133008,1780607451000,-200.0,0.0003,2]
[424133041,1780607451000,-1500.0,0.00030137,15]
[424132983,1780607451000,-257.46780031,0.00029928,2]
[424132985,1780607451000,-411.51907595,0.00029928,2]
[424132987,1780607451000,-228.9226691,0.00029932,2]
[424132986,1780607451000,-342.07590446,0.00029928,2]
[424132984,1780607451000,-557.6469068,0.00029928,2]
[424132989,1780607451000,-158.59563751,0.00029932,2]
[424132990,1780607451000,-257.64181589,0.00029932,2]
[424132993,1780607451000,-271.99298022,0.00029932,2]
[424132995,1780607451000,-471.12538936,0.00029932,2]
[424132994,1780607451000,-486.96111113,0.00029932,2]
[424132991,1780607451000,-348.62553297,0.00029932,2]
[424132998,1780607451000,-1226.0,0.00029938,2]
[424132992,1780607451000,-462.17354732,0.00029932,2]
[424132997,1780607451000,-525.0,0.00029938,2]
[424132996,1780607451000,-1273.0,0.00029938,2]
[424132999,1780607451000,-6070.0,0.00029938,2]
[424133001,1780607451000,-200.0,0.00029981,2]
[424133000,1780607451000,-3641.0,0.00029938,2]
[424133013,1780607451000,-200.0,0.00030067,2]
[424133010,1780607451000,-186.05059448,0.00030014,2]
[424133007,1780607451000,-173.0,0.0003,14]
[424133011,1780607451000,-262.2925949,0.00030027,2]
[424133003,1780607451000,-350.0,0.00029993,15]
[424133006,1780607451000,-215.73365239,0.0003,7]
[424133002,1780607451000,-209.01102078,0.00029985,2]
[424133005,1780607451000,-1095.33607236,0.0003,2]
[424133009,1780607451000,-504.0,0.0003001,5]
[424133040,1780607451000,-1500.0,0.00030137,15]
[424132988,1780607451000,-191.54786584,0.00029932,2]
[424133042,1780607451000,-1500.0,0.00030137,15]
[424133071,1780607451000,-186.04151345,0.00030388,2]
[424133070,1780607451000,-200.0,0.00030367,2]
[424133078,1780607451000,-234.61886786,0.00030503,2]
[424133080,1780607451000,-506.03312841,0.00030507,2]
[424133081,1780607451000,-370.92585577,0.00030507,2]
[424133088,1780607451000,-367.38709948,0.00030507,2]
[424133087,1780607451000,-431.89152006,0.00030507,2]
[424133083,1780607451000,-364.0367666,0.00030507,2]
[424133079,1780607451000,-237.06897241,0.00030503,2]
[424133090,1780607451000,-633.08331186,0.00030507,2]
[424133085,1780607451000,-399.97725993,0.00030507,2]
[424133086,1780607451000,-407.18220649,0.00030507,2]
[424133084,1780607451000,-154.40514762,0.00030507,2]
[424133089,1780607451000,-413.78986884,0.00030507,2]
[424133082,1780607451000,-778.40461431,0.00030507,2]
[424133092,1780607451000,-606.27865551,0.00030507,2]
[424133091,1780607451000,-425.61616874,0.00030507,2]
[424133102,1780607451000,-489.47358659,0.00030508,2]
[424133095,1780607451000,-415.20961672,0.00030507,2]
[424133093,1780607451000,-428.23707371,0.00030507,2]
[424133094,1780607451000,-336.43652496,0.00030507,2]
[424133099,1780607451000,-199.41427773,0.00030508,2]
[424133097,1780607451000,-157.50109676,0.00030507,2]
[424133100,1780607451000,-436.30202957,0.00030508,2]
[424133096,1780607451000,-159.83403232,0.00030507,2]
[424133098,1780607451000,-673.76102071,0.00030507,2]
[424133101,1780607451000,-151.46468938,0.00030508,2]
[424133072,1780607451000,-1358.09,0.000304,7]
[424133068,1780607451000,-200.0,0.00030281,2]
[424133043,1780607451000,-1500.0,0.00030137,15]
[424133076,1780607451000,-315.0,0.000305,2]
[424133069,1780607451000,-200.0,0.00030367,2]
[424133049,1780607451000,-150.00000001,0.00030137,30]
[424133044,1780607451000,-1500.0,0.00030137,15]
[424133047,1780607451000,-165.24,0.00030137,2]
[424133046,1780607451000,-1786.246574,0.00030137,15]
[424133048,1780607451000,-165.24,0.00030137,2]
[424133054,1780607451000,-150.0,0.00030137,2]
[424133050,1780607451000,-165.24,0.00030137,2]
[424133053,1780607451000,-150.0,0.00030137,2]
[424133055,1780607451000,-150.0,0.00030137,2]
[424133058,1780607451000,-295.08896948,0.00030137,2]
[424133057,1780607451000,-150.0,0.00030137,2]
[424133051,1780607451000,-165.24,0.00030137,2]
[424133052,1780607451000,-150.0,0.00030137,2]
[424133045,1780607451000,-1500.0,0.00030137,15]
[424133059,1780607451000,-7094.0,0.00030137,7]
[424133077,1780607451000,-309.0,0.000305,2]
[424133056,1780607451000,-150.0,0.00030137,2]
[424133064,1780607451000,-200.22,0.00030236,30]
[424133075,1780607451000,-282.0,0.000305,2]
[424133073,1780607451000,-178.9,0.00030411,120]
[424133074,1780607451000,-150.0,0.00030482,22]
[424133066,1780607451000,-200.22,0.00030236,30]
[424133065,1780607451000,-200.22,0.00030236,30]
[424133061,1780607451000,-188.86,0.000302,2]
[424133062,1780607451000,-400.43,0.00030236,30]
[424133063,1780607451000,-200.22,0.00030236,30]
[424133060,1780607451000,-252.06,0.000302,2]
[424133067,1780607451000,-3468.4,0.00030239,2]
[424133137,1780607452000,-474.13794481,0.00030513,2]
[424133139,1780607452000,-340.81357991,0.00030513,2]
[424133131,1780607452000,-416.78221074,0.00030508,2]
[424133128,1780607452000,-551.01037226,0.00030508,2]
[424133130,1780607452000,-283.29765806,0.00030508,2]
[424133134,1780607452000,-743.52920907,0.00030508,2]
[424133132,1780607452000,-514.93560062,0.00030508,2]
[424133138,1780607452000,-457.84533819,0.00030513,2]
[424133140,1780607452000,-383.09573168,0.00030513,2]
[424133136,1780607452000,-513.1138567,0.00030508,2]
[424133151,1780607452000,-730.44166669,0.00030513,2]
[424133152,1780607452000,-628.16718581,0.00030513,2]
[424133153,1780607452000,-167.95583231,0.00030513,2]
[424133141,1780607452000,-317.19127502,0.00030513,2]
[424133143,1780607452000,-522.93829945,0.00030513,2]
[424133144,1780607452000,-201.67035082,0.00030513,2]
[424133149,1780607452000,-543.98596044,0.00030513,2]
[424133147,1780607452000,-255.62735591,0.00030513,2]
[424133145,1780607452000,-297.42160564,0.00030513,2]
[424133148,1780607452000,-302.79379145,0.00030513,2]
[424133150,1780607452000,-693.26032098,0.00030513,2]
[424133133,1780607452000,-652.48163996,0.00030508,2]
[424133142,1780607452000,-515.28363177,0.00030513,2]
[424133129,1780607452000,-469.23773571,0.00030508,2]
[424133111,1780607452000,-550.39667635,0.00030508,2]
[424133125,1780607452000,-238.82427377,0.00030508,2]
[424133103,1780607452000,-394.85989273,0.00030508,2]
[424133104,1780607452000,-432.75706051,0.00030508,2]
[424133107,1780607452000,-374.03902022,0.00030508,2]
[424133106,1780607452000,-196.48884048,0.00030508,2]
[424133105,1780607452000,-200.91472526,0.00030508,2]
[424133108,1780607452000,-318.54066849,0.00030508,2]
[424133109,1780607452000,-329.11110173,0.00030508,2]
[424133113,1780607452000,-608.27624529,0.00030508,2]
[424133112,1780607452000,-639.37744911,0.00030508,2]
[424133114,1780607452000,-401.48746634,0.00030508,2]
[424133110,1780607452000,-396.34783679,0.00030508,2]
[424133146,1780607452000,-360.9320991,0.00030513,2]
[424133116,1780607452000,-744.57797092,0.00030508,2]
[424133117,1780607452000,-682.29365197,0.00030508,2]
[424133126,1780607452000,-427.77189756,0.00030508,2]
[424133115,1780607452000,-555.34353453,0.00030508,2]
[424133121,1780607452000,-186.14211185,0.00030508,2]
[424133120,1780607452000,-698.56,0.00030508,2]
[424133124,1780607452000,-185.62484082,0.00030508,2]
[424133119,1780607452000,-231.49095464,0.00030508,2]
[424133123,1780607452000,-240.72063828,0.00030508,2]
[424133118,1780607452000,-254.69439374,0.00030508,2]
[424133122,1780607452000,-154.67999322,0.00030508,2]
[424133127,1780607452000,-452.28205859,0.00030508,2]
[424133156,1780607452000,-559.14198907,0.00030567,2]
[424133135,1780607452000,-617.27861392,0.00030508,2]
[424133159,1780607452000,-154.40952418,0.0003057,2]
[424133187,1780607452000,-172.0,0.00031062,120]
[424133183,1780607452000,-186.05059448,0.00031057,2]
[424133188,1780607452000,-150.0,0.00031062,2]
[424133193,1780607452000,-1447.111,0.00031062,2]
[424133192,1780607452000,-150.0,0.00031062,2]
[424133191,1780607452000,-150.0,0.00031062,2]
[424133195,1780607452000,-791.35413983,0.00031088,2]
[424133197,1780607452000,-842.20127589,0.00031088,2]
[424133189,1780607452000,-150.0,0.00031062,2]
[424133190,1780607452000,-150.0,0.00031062,2]
[424133196,1780607452000,-757.84831938,0.00031088,2]
[424133186,1780607452000,-500.0,0.00031061,11]
[424133198,1780607452000,-760.34530662,0.00031089,2]
[424133199,1780607452000,-815.60204995,0.00031089,2]
[424133203,1780607452000,-531.04,0.000311,7]
[424133202,1780607452000,-1358.09,0.000311,7]
[424133201,1780607452000,-785.20898226,0.00031094,2]
[424133200,1780607452000,-799.22181139,0.00031089,2]
[424133208,1780607452000,-160.0,0.000312,4]
[424133204,1780607452000,-1148.61,0.000311,30]
[424133205,1780607452000,-1573.0,0.00031125,2]
[424133207,1780607452000,-152.0,0.00031178,4]
[424133206,1780607452000,-504.0,0.00031159,6]
[424133158,1780607452000,-339.76958346,0.0003057,2]
[424133194,1780607452000,-1357.0,0.00031062,2]
[424133182,1780607452000,-150.0,0.00031011,2]
[424133154,1780607452000,-186.05059448,0.00030535,2]
[424133184,1780607452000,-500.0,0.00031061,11]
[424133185,1780607452000,-500.0,0.00031061,11]
[424133157,1780607452000,-418.02204156,0.00030567,2]
[424133155,1780607452000,-2560.02,0.00030539,120]
[424133163,1780607452000,-200.0,0.00030583,2]
[424133164,1780607452000,-504.0,0.00030585,5]
[424133161,1780607452000,-317.78950456,0.0003057,2]
[424133160,1780607452000,-150.83989396,0.0003057,2]
[424133165,1780607452000,-169.59,0.00030589,3]
[424133166,1780607452000,-1069.11,0.000306,30]
[424133168,1780607452000,-200.0,0.00030671,2]
[424133167,1780607452000,-200.0,0.00030671,2]
[424133176,1780607452000,-282.12893503,0.00030954,2]
[424133162,1780607452000,-373.3911901,0.0003057,2]
[424133170,1780607452000,-150.0,0.00030728,2]
[424133181,1780607452000,-1114.18,0.00030999,7]
[424133175,1780607452000,-959.27,0.000309,14]
[424133180,1780607452000,-200.0,0.00030978,2]
[424133179,1780607452000,-200.0,0.00030978,2]
[424133172,1780607452000,-399.62246101,0.00030796,2]
[424133178,1780607452000,-1416.0,0.00030964,5]
[424133173,1780607452000,-6188.46715844,0.00030859,2]
[424133177,1780607452000,-1520.0,0.00030964,5]
[424133169,1780607452000,-1055.68,0.000307,7]
[424133171,1780607452000,-644.79446245,0.00030796,2]
[424133174,1780607452000,-150.0,0.00030868,30]
[424133249,1780607453000,-308.147385,0.00031865,7]
[424133246,1780607453000,-308.147385,0.00031865,7]
[424133248,1780607453000,-308.147385,0.00031865,7]
[424133250,1780607453000,-187.729829,0.00031865,7]